[Event "MCR rapid mládeže 2023 U16"]
[Site "Harachov, Czech Republic"]
[Date "2023.09.10"]
[Round "9.14"]
[White "Lackova, Ludmila"]
[Black "Kubatova, Ema"]
[Result "1/2-1/2"]
[TimeControl "20min+5s/move"]
[WhiteElo "1479"]
[BlackElo "1206"]

1. d4 {[%clk 00:20:08]} {[%emt 00:00:02]} Nf6 {[%clk 00:20:08]} {[%emt
00:00:02]} 2. c4 {[%clk 00:20:12]} {[%emt 00:00:02]} e6 {[%clk 00:20:12]}
{[%emt 00:00:01]} 3. Nc3 {[%clk 00:20:13]} {[%emt 00:00:04]} Bb4 {[%clk
00:20:13]} {[%emt 00:00:03]} 4. Qc2 {[%clk 00:20:17]} {[%emt 00:00:01]} b6
{[%clk 00:20:11]} {[%emt 00:00:08]} 5. a3 {[%clk 00:20:07]} {[%emt 00:00:15]}
Bxc3+ {[%clk 00:20:12]} {[%emt 00:00:04]} 6. Qxc3 {[%clk 00:20:10]} {[%emt
00:00:02]} Bb7 {[%clk 00:20:08]} {[%emt 00:00:09]} 7. Bg5 {[%clk 00:19:59]}
{[%emt 00:00:15]} d6 {[%clk 00:20:01]} {[%emt 00:00:12]} 8. Nf3 {[%clk
00:19:25]} {[%emt 00:00:40]} Nbd7 {[%clk 00:19:55]} {[%emt 00:00:10]} 9. g3
{[%clk 00:18:52]} {[%emt 00:00:38]} c5 {[%clk 00:18:40]} {[%emt 00:01:20]} 10.
dxc5 {[%clk 00:18:19]} {[%emt 00:00:39]} dxc5 {[%clk 00:18:31]} {[%emt
00:00:14]} 11. Bg2 {[%clk 00:17:44]} {[%emt 00:00:40]} Qc7 {[%clk 00:18:25]}
{[%emt 00:00:08]} 12. Bf4 {[%clk 00:16:48]} {[%emt 00:01:03]} Qc6 {[%clk
00:15:36]} {[%emt 00:02:54]} 13. O-O {[%clk 00:16:19]} {[%emt 00:00:35]} O-O
{[%clk 00:15:34]} {[%emt 00:00:06]} 14. Ne1 {[%clk 00:16:16]} {[%emt 00:00:07]}
Qc8 {[%clk 00:15:22]} {[%emt 00:00:17]} 15. Nf3 {[%clk 00:15:22]} {[%emt
00:01:01]} Rd8 {[%clk 00:14:22]} {[%emt 00:01:02]} 16. Rad1 {[%clk 00:14:51]}
{[%emt 00:00:38]} Qc6 {[%clk 00:13:51]} {[%emt 00:00:36]} 17. Rd6 {[%clk
00:14:23]} {[%emt 00:00:32]} Qc8 {[%clk 00:13:38]} {[%emt 00:00:18]} 18. Qc2
{[%clk 00:11:27]} {[%emt 00:03:02]} Nf8 {[%clk 00:12:19]} {[%emt 00:01:25]} 19.
Rxd8 {[%clk 00:10:26]} {[%emt 00:01:06]} Qxd8 {[%clk 00:12:20]} {[%emt
00:00:04]} 20. Rd1 {[%clk 00:10:29]} {[%emt 00:00:01]} Qe8 {[%clk 00:11:28]}
{[%emt 00:00:53]} 21. b3 {[%clk 00:06:35]} {[%emt 00:04:04]} Ng6 {[%clk
00:09:53]} {[%emt 00:01:40]} 22. Be5 {[%clk 00:04:47]} {[%emt 00:01:53]} Ng4
{[%clk 00:03:06]} {[%emt 00:06:48]} 23. Bc3 {[%clk 00:04:09]} {[%emt 00:00:45]}
Qc6 {[%clk 00:01:09]} {[%emt 00:02:02]} 24. Nh4 {[%clk 00:03:23]} {[%emt
00:00:53]} Qc7 {[%clk 00:00:40]} {[%emt 00:00:32]} 25. Nf3 {[%clk 00:03:21]}
{[%emt 00:00:09]} Bc6 {[%clk 00:00:37]} {[%emt 00:00:08]} 26. h3 {[%clk
00:03:16]} {[%emt 00:00:09]} Nf6 {[%clk 00:00:23]} {[%emt 00:00:20]} 27. Bxf6
{[%clk 00:02:56]} {[%emt 00:00:25]} gxf6 {[%clk 00:00:27]} {[%emt 00:00:01]} 28.
Qc3 {[%clk 00:02:45]} {[%emt 00:00:16]} Qe7 {[%clk 00:00:12]} {[%emt 00:00:20]}
29. Qd3 {[%clk 00:02:36]} {[%emt 00:00:11]} Kg7 {[%clk 00:00:14]} {[%emt
00:00:05]} 30. Nh4 {[%clk 00:02:02]} {[%emt 00:00:37]} Bxg2 {[%clk 00:00:14]}
{[%emt 00:00:06]} 31. Nxg2 {[%clk 00:01:03]} {[%emt 00:01:04]} Rc8 {[%clk
00:00:12]} {[%emt 00:00:07]} 32. Qd7 {[%clk 00:00:55]} {[%emt 00:00:13]} Rc7
{[%clk 00:00:11]} {[%emt 00:00:06]} 33. Qd6 {[%clk 00:00:47]} {[%emt 00:00:11]}
Ne5 {[%clk 00:00:12]} {[%emt 00:00:05]} 34. Qxe7 {[%clk 00:00:41]} {[%emt
00:00:11]} Rxe7 {[%clk 00:00:16]} {[%emt 00:00:02]} 35. f4 {[%clk 00:00:36]}
{[%emt 00:00:09]} Ng6 {[%clk 00:00:20]} {[%emt 00:00:02]} 36. e4 {[%clk
00:00:32]} {[%emt 00:00:08]} e5 {[%clk 00:00:20]} {[%emt 00:00:06]} 37. f5
{[%clk 00:00:32]} {[%emt 00:00:04]} Nf8 {[%clk 00:00:19]} {[%emt 00:00:06]} 38.
Rd8 {[%clk 00:00:34]} {[%emt 00:00:02]} Rc7 {[%clk 00:00:16]} {[%emt 00:00:09]}
39. Kf2 {[%clk 00:00:34]} {[%emt 00:00:04]} Nd7 {[%clk 00:00:17]} {[%emt
00:00:06]} 40. Ra8 {[%clk 00:00:29]} {[%emt 00:00:09]} Nf8 {[%clk 00:00:16]}
{[%emt 00:00:07]} 41. Ne3 {[%clk 00:00:31]} {[%emt 00:00:03]} Rb7 {[%clk
00:00:13]} {[%emt 00:00:09]} 42. Nd5 {[%clk 00:00:33]} {[%emt 00:00:02]} Nd7
{[%clk 00:00:09]} {[%emt 00:00:09]} 43. Rc8 {[%clk 00:00:37]} {[%emt 00:00:02]}
Nb8 {[%clk 00:00:09]} {[%emt 00:00:05]} 44. Rc7 {[%clk 00:00:38]} {[%emt
00:00:04]} Rxc7 {[%clk 00:00:10]} {[%emt 00:00:03]} 45. Nxc7 {[%clk 00:00:42]}
{[%emt 00:00:01]} Nc6 {[%clk 00:00:11]} {[%emt 00:00:05]} 46. Na6 {[%clk
00:00:37]} {[%emt 00:00:09]} Nd4 {[%clk 00:00:12]} {[%emt 00:00:04]} 47. b4
{[%clk 00:00:39]} {[%emt 00:00:03]} cxb4 {[%clk 00:00:15]} {[%emt 00:00:02]} 48.
axb4 {[%clk 00:00:39]} {[%emt 00:00:05]} Nc6 {[%clk 00:00:11]} {[%emt
00:00:09]} 49. c5 {[%clk 00:00:41]} {[%emt 00:00:03]} bxc5 {[%emt 00:00:05]} 50.
bxc5 Kf8 {[%clk 00:00:12]} {[%emt 00:00:03]} 51. Ke3 {[%clk 00:00:49]} {[%emt
00:00:02]} Ke7 {[%clk 00:00:14]} {[%emt 00:00:02]} 52. Kd3 {[%clk 00:00:53]}
{[%emt 00:00:02]} Kd8 {[%clk 00:00:13]} {[%emt 00:00:06]} 53. Kc4 {[%clk
00:00:56]} {[%emt 00:00:02]} Kc8 {[%clk 00:00:12]} {[%emt 00:00:06]} 54. Nb4
{[%clk 00:00:54]} {[%emt 00:00:08]} Kc7 {[%clk 00:00:09]} {[%emt 00:00:07]} 55.
Nd3 {[%clk 00:00:57]} {[%emt 00:00:03]} a6 {[%clk 00:00:11]} {[%emt 00:00:03]}
56. g4 {[%clk 00:00:54]} {[%emt 00:00:07]} h6 {[%clk 00:00:14]} {[%emt
00:00:03]} 57. Nb2 {[%clk 00:00:51]} {[%emt 00:00:07]} Na5+ {[%clk 00:00:11]}
{[%emt 00:00:09]} 58. Kb4 {[%clk 00:00:53]} {[%emt 00:00:02]} Nc6+ {[%clk
00:00:15]} {[%emt 00:00:02]} 59. Kc4 {[%clk 00:00:57]} {[%emt 00:00:01]} Na5+
{[%clk 00:00:19]} {[%emt 00:00:01]} 60. Kb4 {[%clk 00:00:49]} {[%emt 00:00:13]}
Nc6+ {[%clk 00:00:23]} {[%emt 00:00:01]} 1/2-1/2

[Event "MCR rapid mládeže 2023 U16"]
[Site "Harachov, Czech Republic"]
[Date "2023.09.10"]
[Round "9.15"]
[White "Mik, Tomas"]
[Black "Tejnor, Martin"]
[Result "0-1"]
[TimeControl "20min+5s/move"]
[WhiteElo "1802"]
[BlackElo "1434"]

1. e4 {[%clk 00:20:09]} {[%emt 00:00:01]} c5 {[%clk 00:20:09]} {[%emt
00:00:02]} 2. Nf3 {[%clk 00:20:12]} {[%emt 00:00:01]} d6 {[%clk 00:20:11]}
{[%emt 00:00:03]} 3. d4 {[%clk 00:20:16]} {[%emt 00:00:02]} cxd4 {[%clk
00:20:15]} {[%emt 00:00:01]} 4. Nxd4 {[%clk 00:20:20]} Nf6 {[%clk 00:20:19]}
{[%emt 00:00:02]} 5. Nc3 {[%clk 00:20:24]} {[%emt 00:00:01]} Nc6 {[%clk
00:20:23]} {[%emt 00:00:01]} 6. Be2 {[%clk 00:20:24]} {[%emt 00:00:05]} e6
{[%clk 00:20:20]} {[%emt 00:00:08]} 7. O-O {[%clk 00:20:24]} {[%emt 00:00:04]}
Be7 {[%clk 00:20:24]} 8. Be3 {[%clk 00:20:26]} {[%emt 00:00:04]} O-O {[%clk
00:20:26]} {[%emt 00:00:03]} 9. f4 {[%clk 00:20:29]} {[%emt 00:00:01]} Bd7
{[%clk 00:19:51]} {[%emt 00:00:41]} 10. Qe1 {[%clk 00:20:29]} {[%emt 00:00:05]}
a6 {[%clk 00:19:24]} {[%emt 00:00:32]} 11. Qg3 {[%clk 00:20:27]} {[%emt
00:00:07]} Re8 {[%clk 00:18:36]} {[%emt 00:00:53]} 12. Rae1 {[%clk 00:19:50]}
{[%emt 00:00:41]} Qc7 {[%clk 00:18:02]} {[%emt 00:00:41]} 13. Bd3 {[%clk
00:18:58]} {[%emt 00:00:56]} Nb4 {[%clk 00:16:49]} {[%emt 00:01:18]} 14. Kh1
{[%clk 00:16:59]} {[%emt 00:02:04]} Nxd3 {[%clk 00:15:45]} {[%emt 00:01:09]} 15.
cxd3 {[%clk 00:17:02]} {[%emt 00:00:01]} Rac8 {[%clk 00:15:49]} {[%emt
00:00:01]} 16. e5 {[%clk 00:15:04]} {[%emt 00:02:04]} Nd5 {[%clk 00:15:18]}
{[%emt 00:00:36]} 17. Bd2 {[%clk 00:14:14]} {[%emt 00:00:55]} Qb6 {[%clk
00:14:03]} {[%emt 00:01:21]} 18. Nxd5 {[%clk 00:13:18]} {[%emt 00:01:01]} exd5
{[%clk 00:13:59]} {[%emt 00:00:09]} 19. Bc3 {[%clk 00:12:18]} {[%emt 00:01:05]}
dxe5 {[%clk 00:10:45]} {[%emt 00:03:19]} 20. Rxe5 {[%clk 00:09:10]} {[%emt
00:03:10]} Qd6 {[%clk 00:09:12]} {[%emt 00:01:39]} 21. Nf5 {[%clk 00:08:25]}
{[%emt 00:00:51]} Bxf5 {[%clk 00:08:36]} {[%emt 00:00:41]} 22. Re6 {[%clk
00:07:38]} {[%emt 00:00:52]} Rxc3 {[%clk 00:07:11]} {[%emt 00:01:30]} 23. Rxd6
{[%clk 00:07:06]} {[%emt 00:00:37]} Rxd3 {[%clk 00:07:14]} {[%emt 00:00:02]} 24.
Qe1 {[%clk 00:07:09]} {[%emt 00:00:02]} Be4 {[%clk 00:06:26]} {[%emt 00:00:53]}
25. Rd7 {[%clk 00:06:44]} {[%emt 00:00:30]} Bc5 {[%clk 00:06:11]} {[%emt
00:00:20]} 26. Qe2 {[%clk 00:03:39]} {[%emt 00:03:10]} Re3 {[%clk 00:05:25]}
{[%emt 00:00:51]} 27. Qd2 {[%clk 00:03:14]} {[%emt 00:00:30]} Bd3 {[%clk
00:04:21]} {[%emt 00:01:09]} 28. Rc1 {[%clk 00:02:52]} {[%emt 00:00:27]} h6
{[%clk 00:04:13]} {[%emt 00:00:14]} 29. h3 {[%clk 00:02:34]} {[%emt 00:00:23]}
Bc4 {[%clk 00:04:08]} {[%emt 00:00:10]} 30. b3 {[%clk 00:01:47]} {[%emt
00:00:51]} Re2 {[%clk 00:04:09]} {[%emt 00:00:04]} 31. Qc3 {[%clk 00:01:11]}
{[%emt 00:00:41]} Bb5 {[%clk 00:03:33]} {[%emt 00:00:41]} 32. Rxd5 {[%clk
00:01:02]} {[%emt 00:00:13]} Ba3 {[%clk 00:03:36]} {[%emt 00:00:01]} 33. Rg1
{[%clk 00:01:02]} {[%emt 00:00:06]} Bc6 {[%clk 00:03:37]} {[%emt 00:00:04]} 34.
Re5 {[%clk 00:00:58]} {[%emt 00:00:09]} R8xe5 {[%clk 00:02:31]} {[%emt
00:01:11]} 35. fxe5 {[%clk 00:00:57]} {[%emt 00:00:06]} Bb2 {[%clk 00:02:34]}
{[%emt 00:00:02]} 36. Qd3 {[%clk 00:00:36]} {[%emt 00:00:26]} Rf2 {[%clk
00:02:35]} {[%emt 00:00:03]} 37. Qg3 {[%clk 00:00:30]} {[%emt 00:00:12]} Bd4
{[%clk 00:02:29]} {[%emt 00:00:11]} 38. a4 {[%clk 00:00:26]} {[%emt 00:00:10]}
Rb2 {[%clk 00:01:52]} {[%emt 00:00:41]} 39. Rd1 {[%clk 00:00:18]} {[%emt
00:00:13]} Bb6 {[%clk 00:01:55]} {[%emt 00:00:02]} 40. Kh2 {[%clk 00:00:14]}
{[%emt 00:00:10]} Bc7 {[%clk 00:01:49]} {[%emt 00:00:10]} 41. Rf1 {[%clk
00:00:12]} {[%emt 00:00:07]} Bxe5 {[%clk 00:01:43]} {[%emt 00:00:11]} 42. Rf4
{[%clk 00:00:09]} {[%emt 00:00:09]} Rxg2+ {[%clk 00:01:42]} {[%emt 00:00:04]}
43. Qxg2 {[%clk 00:00:07]} {[%emt 00:00:08]} Bxf4+ {[%clk 00:01:44]} {[%emt
00:00:03]} 0-1

[Event "MCR rapid mládeže 2023 U16"]
[Site "Harachov, Czech Republic"]
[Date "2023.09.10"]
[Round "9.16"]
[White "Boff, Ondrej"]
[Black "Svadlenka, Michal"]
[Result "1-0"]
[TimeControl "20min+5s/move"]
[WhiteElo "1486"]
[BlackElo "1451"]

1. e4 {[%clk 00:20:05]} {[%emt 00:00:04]} c5 {[%clk 00:20:08]} {[%emt
00:00:03]} 2. Nf3 {[%clk 00:20:06]} {[%emt 00:00:04]} d6 {[%clk 00:20:12]}
{[%emt 00:00:02]} 3. Bb5+ {[%clk 00:20:09]} {[%emt 00:00:01]} Nc6 {[%clk
00:20:14]} {[%emt 00:00:03]} 4. d4 {[%clk 00:20:11]} {[%emt 00:00:03]} cxd4
{[%clk 00:20:18]} {[%emt 00:00:02]} 5. Qxd4 {[%clk 00:20:13]} {[%emt 00:00:03]}
Bd7 {[%clk 00:20:13]} {[%emt 00:00:10]} 6. Bxc6 {[%clk 00:20:16]} {[%emt
00:00:02]} Bxc6 {[%clk 00:20:06]} {[%emt 00:00:13]} 7. c4 {[%clk 00:20:18]}
{[%emt 00:00:01]} Nf6 {[%clk 00:19:57]} {[%emt 00:00:14]} 8. Nc3 {[%clk
00:20:19]} {[%emt 00:00:04]} g6 {[%clk 00:19:55]} {[%emt 00:00:07]} 9. O-O
{[%clk 00:20:16]} {[%emt 00:00:07]} Bg7 {[%clk 00:19:55]} {[%emt 00:00:06]} 10.
Qd3 {[%clk 00:20:06]} {[%emt 00:00:14]} O-O {[%clk 00:19:54]} {[%emt 00:00:07]}
11. Be3 {[%clk 00:20:04]} {[%emt 00:00:06]} a6 {[%clk 00:19:45]} {[%emt
00:00:16]} 12. Rac1 {[%clk 00:19:49]} {[%emt 00:00:19]} Rc8 {[%clk 00:19:44]}
{[%emt 00:00:06]} 13. b3 {[%clk 00:19:36]} {[%emt 00:00:18]} Qd7 {[%clk
00:18:57]} {[%emt 00:00:53]} 14. Rfd1 {[%clk 00:18:19]} {[%emt 00:01:26]} Qc7
{[%clk 00:15:57]} {[%emt 00:03:10]} 15. Nd5 {[%clk 00:16:36]} {[%emt 00:01:47]}
Bxd5 {[%clk 00:15:27]} {[%emt 00:00:36]} 16. exd5 {[%clk 00:16:10]} {[%emt
00:00:31]} Nd7 {[%clk 00:13:44]} {[%emt 00:01:48]} 17. Re1 {[%clk 00:14:31]}
{[%emt 00:01:44]} Rfe8 {[%clk 00:13:40]} {[%emt 00:00:10]} 18. Bd4 {[%clk
00:14:01]} {[%emt 00:00:35]} Nc5 {[%clk 00:13:23]} {[%emt 00:00:21]} 19. Qc3
{[%clk 00:13:20]} {[%emt 00:00:45]} Bxd4 {[%clk 00:13:10]} {[%emt 00:00:19]} 20.
Nxd4 {[%clk 00:12:53]} {[%emt 00:00:32]} Nd7 {[%clk 00:09:41]} {[%emt
00:03:34]} 21. Re3 {[%clk 00:11:06]} {[%emt 00:01:50]} Nf6 {[%clk 00:07:40]}
{[%emt 00:02:08]} 22. h3 {[%clk 00:09:43]} {[%emt 00:01:27]} Qd7 {[%clk
00:07:02]} {[%emt 00:00:44]} 23. Qb2 {[%clk 00:08:58]} {[%emt 00:00:48]} Rc7
{[%clk 00:06:11]} {[%emt 00:00:57]} 24. Rce1 {[%clk 00:08:30]} {[%emt
00:00:32]} Nh5 {[%clk 00:04:53]} {[%emt 00:01:24]} 25. Re4 {[%clk 00:07:01]}
{[%emt 00:01:32]} Ng7 {[%clk 00:04:33]} {[%emt 00:00:26]} 26. Qd2 {[%clk
00:06:15]} {[%emt 00:00:49]} h5 {[%clk 00:03:13]} {[%emt 00:01:29]} 27. Qg5
{[%clk 00:05:33]} {[%emt 00:00:46]} Kh7 {[%clk 00:02:43]} {[%emt 00:00:35]} 28.
g4 {[%clk 00:04:19]} {[%emt 00:01:18]} f6 {[%clk 00:01:49]} {[%emt 00:01:00]}
29. Qe3 {[%clk 00:04:08]} {[%emt 00:00:12]} g5 {[%clk 00:00:25]} {[%emt
00:01:34]} 30. Qd3 {[%clk 00:03:27]} {[%emt 00:00:43]} Kh6 {[%clk 00:00:26]}
{[%emt 00:00:06]} 31. Ne6 {[%clk 00:03:07]} {[%emt 00:00:24]} Nxe6 {[%clk
00:00:28]} {[%emt 00:00:04]} 32. Rxe6 {[%clk 00:02:59]} {[%emt 00:00:13]} h4
{[%clk 00:00:17]} {[%emt 00:00:16]} 33. f4 {[%clk 00:02:42]} {[%emt 00:00:22]}
Rg8 {[%clk 00:00:16]} {[%emt 00:00:06]} 34. Qe4 {[%clk 00:02:13]} {[%emt
00:00:33]} Qe8 {[%clk 00:00:11]} {[%emt 00:00:12]} 35. fxg5+ {[%clk 00:01:24]}
{[%emt 00:00:53]} Rxg5 {[%clk 00:00:12]} {[%emt 00:00:04]} 36. Rxf6+ {[%clk
00:01:20]} {[%emt 00:00:08]} Kg7 {[%clk 00:00:15]} {[%emt 00:00:03]} 37. Qd4
{[%clk 00:01:02]} {[%emt 00:00:23]} Re5 {[%clk 00:00:09]} {[%emt 00:00:11]} 38.
Rxe5 {[%clk 00:01:03]} {[%emt 00:00:04]} dxe5 {[%clk 00:00:13]} {[%emt
00:00:02]} 39. Qxe5 {[%clk 00:01:04]} {[%emt 00:00:03]} Kg8 {[%clk 00:00:06]}
{[%emt 00:00:12]} 40. Qg5+ {[%clk 00:01:03]} {[%emt 00:00:04]} 1-0

[Event "MCR rapid mládeže 2023 U16"]
[Site "Harachov, Czech Republic"]
[Date "2023.09.10"]
[Round "9.17"]
[White "Sochor, Antonin"]
[Black "Mydlar, Matej"]
[Result "0-1"]
[TimeControl "20min+5s/move"]
[WhiteElo "1480"]
[BlackElo "1711"]

1. Nf3 {[%clk 00:20:05]} {[%emt 00:00:05]} c5 {[%clk 00:20:09]} {[%emt
00:00:01]} 2. g3 {[%clk 00:20:08]} {[%emt 00:00:02]} g6 {[%clk 00:20:12]}
{[%emt 00:00:02]} 3. Bg2 {[%clk 00:20:12]} {[%emt 00:00:01]} Bg7 {[%clk
00:20:16]} {[%emt 00:00:01]} 4. d3 {[%clk 00:20:15]} {[%emt 00:00:02]} Nc6
{[%clk 00:20:19]} {[%emt 00:00:02]} 5. O-O {[%clk 00:20:13]} {[%emt 00:00:07]}
d5 {[%clk 00:20:22]} {[%emt 00:00:02]} 6. Nbd2 {[%clk 00:20:14]} {[%emt
00:00:04]} Nf6 {[%clk 00:20:26]} {[%emt 00:00:01]} 7. e4 {[%clk 00:20:17]}
{[%emt 00:00:02]} e5 {[%clk 00:20:22]} {[%emt 00:00:09]} 8. Qe2 {[%clk
00:20:15]} {[%emt 00:00:07]} O-O {[%clk 00:20:24]} {[%emt 00:00:02]} 9. Ne1
{[%clk 00:20:14]} {[%emt 00:00:06]} Nd4 {[%clk 00:20:12]} {[%emt 00:00:18]} 10.
Qd1 {[%clk 00:20:13]} {[%emt 00:00:06]} Re8 {[%clk 00:19:08]} {[%emt 00:01:08]}
11. f4 {[%clk 00:19:47]} {[%emt 00:00:30]} exf4 {[%clk 00:18:27]} {[%emt
00:00:48]} 12. gxf4 {[%clk 00:19:44]} {[%emt 00:00:08]} Bg4 {[%clk 00:18:24]}
{[%emt 00:00:08]} 13. Nef3 {[%clk 00:19:37]} {[%emt 00:00:12]} dxe4 {[%clk
00:18:19]} {[%emt 00:00:10]} 14. Nxe4 {[%clk 00:19:26]} {[%emt 00:00:16]} Nxe4
{[%clk 00:18:04]} {[%emt 00:00:20]} 15. dxe4 {[%clk 00:19:17]} {[%emt
00:00:14]} Rxe4 {[%clk 00:17:43]} {[%emt 00:00:26]} 16. c3 {[%clk 00:18:53]}
{[%emt 00:00:25]} Nxf3+ {[%clk 00:16:52]} {[%emt 00:00:59]} 17. Bxf3 {[%clk
00:18:46]} {[%emt 00:00:12]} Bxf3 {[%clk 00:16:36]} {[%emt 00:00:22]} 18. Qxf3
{[%clk 00:18:47]} {[%emt 00:00:05]} f5 {[%clk 00:16:00]} {[%emt 00:00:41]} 19.
Be3 {[%clk 00:18:18]} {[%emt 00:00:32]} Qe7 {[%clk 00:15:52]} {[%emt 00:00:13]}
20. Rae1 {[%clk 00:17:55]} {[%emt 00:00:27]} Re8 {[%clk 00:15:50]} {[%emt
00:00:08]} 21. Bf2 {[%clk 00:17:20]} {[%emt 00:00:40]} b6 {[%clk 00:15:23]}
{[%emt 00:00:33]} 22. Kg2 {[%clk 00:16:55]} {[%emt 00:00:29]} Bh6 {[%clk
00:13:24]} {[%emt 00:02:05]} 23. Bg3 {[%clk 00:16:51]} {[%emt 00:00:08]} Re2+
{[%clk 00:12:59]} {[%emt 00:00:31]} 24. Rxe2 {[%clk 00:16:23]} {[%emt
00:00:33]} Qxe2+ {[%clk 00:13:02]} {[%emt 00:00:01]} 25. Rf2 {[%clk 00:16:25]}
{[%emt 00:00:02]} Qxf3+ {[%clk 00:11:53]} {[%emt 00:01:16]} 26. Kxf3 {[%clk
00:16:25]} {[%emt 00:00:03]} Rd8 {[%clk 00:11:23]} {[%emt 00:00:36]} 27. Re2
{[%clk 00:15:53]} {[%emt 00:00:38]} Kf7 {[%clk 00:11:21]} {[%emt 00:00:06]} 28.
Bh4 {[%clk 00:15:27]} {[%emt 00:00:31]} Rd3+ {[%clk 00:10:44]} {[%emt
00:00:42]} 29. Re3 {[%clk 00:15:24]} {[%emt 00:00:09]} Rxe3+ {[%clk 00:10:31]}
{[%emt 00:00:18]} 30. Kxe3 {[%clk 00:15:14]} {[%emt 00:00:16]} Ke6 {[%clk
00:10:34]} {[%emt 00:00:01]} 31. c4 {[%clk 00:15:17]} {[%emt 00:00:02]} Bg7
{[%clk 00:10:28]} {[%emt 00:00:11]} 32. b3 {[%clk 00:15:20]} {[%emt 00:00:02]}
Bf6 {[%clk 00:10:28]} {[%emt 00:00:05]} 33. Bg3 {[%clk 00:15:13]} {[%emt
00:00:11]} h6 {[%clk 00:10:11]} {[%emt 00:00:23]} 34. h4 {[%clk 00:15:05]}
{[%emt 00:00:11]} g5 {[%clk 00:09:01]} {[%emt 00:01:16]} 35. fxg5 {[%clk
00:14:36]} {[%emt 00:00:34]} hxg5 {[%clk 00:09:02]} {[%emt 00:00:03]} 36. hxg5
{[%clk 00:14:39]} {[%emt 00:00:03]} Bxg5+ {[%clk 00:09:06]} {[%emt 00:00:01]}
37. Kf3 {[%clk 00:14:42]} {[%emt 00:00:02]} Bf6 {[%clk 00:08:57]} {[%emt
00:00:14]} 38. Bb8 {[%clk 00:14:35]} {[%emt 00:00:12]} a6 {[%clk 00:08:57]}
{[%emt 00:00:05]} 39. Bc7 {[%clk 00:14:31]} {[%emt 00:00:08]} b5 {[%clk
00:09:01]} {[%emt 00:00:02]} 40. Bb6 {[%clk 00:14:27]} {[%emt 00:00:09]} Bd4
{[%clk 00:08:30]} {[%emt 00:00:36]} 41. a4 {[%clk 00:14:14]} {[%emt 00:00:18]}
bxa4 {[%clk 00:08:03]} {[%emt 00:00:32]} 42. bxa4 {[%clk 00:14:16]} {[%emt
00:00:03]} Bg1 {[%clk 00:07:50]} {[%emt 00:00:17]} 43. Kf4 {[%clk 00:14:18]}
{[%emt 00:00:04]} Bh2+ {[%clk 00:07:48]} {[%emt 00:00:06]} 44. Kf3 {[%clk
00:14:20]} {[%emt 00:00:03]} Bd6 {[%clk 00:07:50]} {[%emt 00:00:03]} 45. Ba5
{[%clk 00:14:09]} {[%emt 00:00:17]} Kf6 {[%clk 00:07:22]} {[%emt 00:00:33]} 46.
Bd8+ {[%clk 00:13:21]} {[%emt 00:00:52]} Ke5 {[%clk 00:07:14]} {[%emt
00:00:12]} 47. Ke3 {[%clk 00:12:53]} {[%emt 00:00:34]} f4+ {[%clk 00:07:18]}
{[%emt 00:00:02]} 48. Kd3 {[%clk 00:12:56]} {[%emt 00:00:02]} f3 {[%clk
00:06:51]} {[%emt 00:00:31]} 49. Bh4 {[%clk 00:12:57]} {[%emt 00:00:03]} Kf4
{[%clk 00:06:54]} {[%emt 00:00:04]} 50. Bf2 {[%clk 00:13:00]} {[%emt 00:00:01]}
Kg4 {[%clk 00:06:36]} {[%emt 00:00:24]} 51. Ke4 {[%clk 00:12:52]} {[%emt
00:00:13]} Be7 {[%clk 00:06:07]} {[%emt 00:00:34]} 52. Kd5 {[%clk 00:11:01]}
{[%emt 00:01:56]} Kh3 {[%clk 00:06:05]} {[%emt 00:00:06]} 53. Ke6 {[%clk
00:11:00]} {[%emt 00:00:07]} Kg2 {[%clk 00:06:04]} {[%emt 00:00:06]} 54. Be3
{[%clk 00:11:03]} {[%emt 00:00:02]} Bf8 {[%clk 00:05:35]} {[%emt 00:00:32]} 55.
Kf7 {[%clk 00:11:07]} {[%emt 00:00:02]} Bd6 {[%clk 00:05:39]} {[%emt 00:00:02]}
56. Ke6 {[%clk 00:11:10]} {[%emt 00:00:01]} Bh2 {[%clk 00:05:43]} {[%emt
00:00:02]} 57. Kd5 {[%clk 00:10:42]} {[%emt 00:00:33]} Bg1 {[%clk 00:05:44]}
{[%emt 00:00:04]} 58. Bxg1 {[%clk 00:10:45]} {[%emt 00:00:02]} Kxg1 {[%clk
00:05:48]} {[%emt 00:00:01]} 59. Kxc5 {[%clk 00:10:48]} {[%emt 00:00:02]} f2
{[%clk 00:05:52]} 60. Kb6 {[%clk 00:10:46]} {[%emt 00:00:07]} f1=Q {[%clk
00:05:56]} {[%emt 00:00:02]} 61. c5 {[%clk 00:10:48]} {[%emt 00:00:03]} Qc4
{[%clk 00:05:55]} {[%emt 00:00:06]} 62. c6 {[%clk 00:10:25]} {[%emt 00:00:28]}
Qxa4 {[%clk 00:05:58]} {[%emt 00:00:02]} 63. c7 {[%clk 00:10:29]} {[%emt
00:00:01]} Qc4 {[%clk 00:06:02]} {[%emt 00:00:01]} 64. Kb7 {[%clk 00:10:33]}
{[%emt 00:00:01]} a5 {[%clk 00:06:05]} {[%emt 00:00:02]} 65. c8=Q {[%clk
00:10:33]} {[%emt 00:00:05]} Qxc8+ {[%clk 00:06:09]} {[%emt 00:00:01]} 66. Kxc8
{[%clk 00:10:36]} {[%emt 00:00:02]} a4 {[%clk 00:06:13]} {[%emt 00:00:01]} 67.
Kc7 {[%clk 00:10:38]} {[%emt 00:00:02]} a3 {[%clk 00:06:18]} 68. Kb6 {[%clk
00:10:42]} {[%emt 00:00:02]} a2 {[%clk 00:06:22]} 69. Kb5 {[%clk 00:10:46]}
{[%emt 00:00:02]} a1=Q {[%clk 00:06:25]} {[%emt 00:00:02]} 0-1